bitfinex-derivatives/quotes_ETHF0:USTF0_20251103
["timestamp","ask_amount","ask_price","bid_price","bid_amount"]
[1762203457072,0.50637261,3571.3,3571.2,1.09485165]
[1762203458172,0.00224261,3571.3,3571.2,1.67295165]
[1762203458674,0.50637261,3571.3,3571.2,1.67295165]
[1762203459579,0.00224261,3571.3,3571.2,1.67295165]
[1762203460074,1.25992,3572.5,3572.1,0.3336]
[1762203460276,0.504,3572.2,3572.1,0.3336]
[1762203460476,11.503,3572.2,3572.1,0.3336]
[1762203460666,0.50413,3571.3,3571.2,0.3368143]
[1762203460872,0.50413,3571.3,3571.2,0.9149143]
[1762203461067,0.00335388,3571.3,3571.2,1.67295165]
[1762203461570,0.50748388,3571.3,3571.2,1.67295165]
[1762203461771,0.00335388,3571.3,3571.2,1.67295165]
[1762203461976,7.4326,3571.4,3571.3,1.33613735]
[1762203462179,0.50409,3571.6,3571.5,0.5781]
[1762203462578,13.56617491,3573.0,3571.5,0.5781]
[1762203462579,1.25987,3572.6,3571.5,0.75803735]
[1762203462779,1.25987,3572.6,3571.2,0.3368143]
[1762203462780,10.987,3572.3,3571.8,0.75803735]
[1762203462974,0.504,3572.2,3571.7,1.26210735]
[1762203463279,0.504,3572.2,3571.9,0.75803735]
[1762203463476,5.6874959,3572.3,3571.7,0.75803735]
[1762203463671,1.26002,3572.2,3571.4,0.75803735]
[1762203463874,0.50406,3571.8,3571.4,0.75803735]
[1762203464068,0.50406,3571.8,3571.2,0.8409543]
[1762203464069,1.26002,3572.2,3571.2,0.3368143]
[1762203464273,0.5041,3571.5,3571.4,0.75803735]
[1762203464479,0.50412,3571.4,3571.2,0.9149143]
[1762203464776,0.50413,3571.3,3571.2,0.9149143]
[1762203465173,0.50413,3571.3,3571.2,1.67295165]
[1762203465382,0.50409,3571.6,3571.5,0.5839]
[1762203465875,0.50409,3571.6,3571.5,0.75803735]
[1762203466077,0.50409,3571.6,3571.2,0.3368143]
[1762203466078,0.50413,3571.3,3571.2,0.0032143]
[1762203466284,0.50413,3571.3,3571.2,0.5871143]
[1762203466482,0.50413,3571.3,3571.2,1.34515165]
[1762203467582,0.50413,3571.3,3571.2,0.0032143]
[1762203467882,1.81544549,3571.3,3571.2,0.0032143]
[1762203468084,2.08482807,3571.3,3571.2,0.0032143]
[1762203468479,0.5041,3571.5,3571.2,1.34515165]
[1762203468683,7.13,3571.6,3571.4,0.75803735]
[1762203468981,0.5041,3571.5,3571.4,0.75803735]
[1762203469279,0.96857491,3572.2,3571.5,1.26212735]
[1762203469485,0.50403,3572.0,3571.9,0.75803735]
[1762203469685,0.50407,3571.8,3571.6,0.75803735]
[1762203469887,0.0024959,3572.3,3571.7,0.5839]
[1762203470085,0.50403,3572.0,3571.9,0.75803735]
[1762203470280,0.50409,3571.6,3571.5,0.5839]
[1762203470680,0.50409,3571.6,3571.5,1.34193735]
[1762203471384,10.9404959,3572.3,3571.8,0.5839]
[1762203471580,0.50402,3572.1,3572.0,1.34193735]
[1762203471780,0.67194509,3572.1,3572.0,0.5839]
[1762203471981,1.17600292,3572.2,3572.1,0.9469]
[1762203472182,0.67199292,3572.2,3572.1,0.9469]
[1762203472383,0.0024959,3572.3,3572.2,0.5839]
[1762203472583,0.0024959,3572.3,3572.2,1.34193735]
[1762203473180,0.0024959,3572.3,3572.2,1.84593735]
[1762203473586,0.50387,3573.2,3573.1,0.5839]
[1762203473783,1.4468203,3573.2,3573.1,0.5839]
[1762203474089,1.17649912,3573.2,3573.1,1.34193735]
[1762203474385,0.67262912,3573.2,3573.1,1.34193735]
[1762203474583,0.67562255,3573.2,3573.1,1.34193735]
[1762203474784,0.00299343,3573.2,3573.1,1.34193735]
[1762203475088,0.00299343,3573.2,3573.1,1.84581735]
[1762203475783,0.00299343,3573.2,3573.1,1.34193735]
[1762203475980,0.00299343,3573.2,3573.1,0.75803735]
[1762203476488,0.00299343,3573.2,3572.1,0.363]
[1762203476489,0.50388,3573.1,3571.2,0.0032143]
[1762203476686,0.67146397,3573.0,3572.8,0.50392]
[1762203476882,0.00299343,3573.2,3573.0,0.50389]
[1762203477084,0.67149527,3573.1,3573.0,0.50389]
[1762203477285,0.00299343,3573.2,3573.1,0.75803735]
[1762203477594,0.67432217,3573.2,3573.1,0.75803735]
[1762203478791,0.67432217,3573.2,3573.1,1.34193735]
[1762203478992,0.00299343,3573.2,3573.1,1.34193735]
[1762203481289,0.97701839,3574.3,3573.1,1.34193735]
[1762203481585,0.67121322,3574.2,3574.1,0.5839]
[1762203481982,0.67121322,3574.2,3574.1,1.34193735]
[1762203482390,0.67460879,3574.2,3574.1,1.34475873]
[1762203483489,0.67460879,3574.2,3574.1,0.76085873]
[1762203483790,0.50383,3573.5,3573.0,0.50389]
[1762203483991,0.5038,3573.7,3573.5,0.363]
[1762203484191,0.5038,3573.7,3573.6,0.5839]
[1762203484385,0.00339557,3574.2,3573.6,1.84573735]
[1762203484581,0.50375,3574.0,3573.9,0.75803735]
[1762203484782,0.5038,3573.7,3573.6,1.34193735]
[1762203484993,0.50375,3574.0,3573.9,0.5839]
[1762203485190,0.50375,3574.0,3573.9,1.34193735]
[1762203485390,0.50374,3574.1,3573.9,1.34193735]
[1762203485693,0.00339557,3574.2,3574.1,1.84567735]
[1762203485892,0.025,3574.7,3574.6,1.08756]
[1762203486095,0.025,3574.7,3574.6,1.34193735]
[1762203486388,0.025,3574.7,3574.6,1.84559735]
[1762203486588,0.52865,3574.7,3574.6,1.34193735]
[1762203486989,0.53155748,3574.7,3574.6,1.34193735]
[1762203487386,0.02790748,3574.7,3574.6,1.34193735]
[1762203487586,0.02790748,3574.7,3574.6,1.84560735]
[1762203487996,0.02790748,3574.7,3574.6,1.34193735]
[1762203488197,0.53155748,3574.7,3574.6,1.34193735]
[1762203488892,0.02790748,3574.7,3574.6,1.84559735]
[1762203489399,0.02790748,3574.7,3574.6,1.34193735]
[1762203489595,0.53155748,3574.7,3574.6,0.75803735]
[1762203490896,0.53155748,3574.7,3573.6,0.58680889]
[1762203490897,1.25929,3574.3,3573.6,0.58680889]
[1762203491096,0.50377,3573.9,3573.8,0.5839]
[1762203491594,0.50377,3573.9,3573.8,1.34193735]
[1762203492299,0.02790748,3574.7,3573.8,1.34193735]
[1762203492601,0.50369,3574.4,3574.3,1.34193735]
[1762203492896,0.50368,3574.5,3574.4,0.5839]
[1762203493097,0.53156748,3574.7,3574.4,1.34193735]
[1762203493292,0.50367,3574.6,3574.4,0.5839]
[1762203493695,0.50367,3574.6,3574.5,1.34193735]
[1762203493991,0.02790748,3574.7,3574.6,0.5839]
[1762203494188,0.02790748,3574.7,3574.6,1.34193735]
[1762203494391,0.53155748,3574.7,3574.6,1.34193735]
[1762203494692,0.02790748,3574.7,3574.6,1.34193735]
[1762203494892,0.53155748,3574.7,3574.6,1.34193735]
[1762203495496,0.02790748,3574.7,3574.6,1.34193735]
[1762203495803,0.53155748,3574.7,3574.6,1.34193735]
[1762203496597,0.02790748,3574.7,3574.6,1.84559735]
[1762203496906,0.53155748,3574.7,3574.6,1.34193735]
[1762203497201,0.53155748,3574.7,3574.6,0.75803735]
[1762203497700,0.53155748,3574.7,3574.2,0.363]
[1762203497701,0.50371,3574.3,3574.2,0.9162]
[1762203497900,0.02790748,3574.7,3574.6,0.5532]
[1762203498096,0.53155748,3574.7,3574.6,1.31123735]
[1762203498296,0.02790748,3574.7,3574.6,1.31123735]
[1762203498990,0.56760748,3574.7,3574.5,0.75803735]
[1762203499196,0.50378,3573.8,3573.6,0.00290889]
[1762203499390,0.02790748,3574.7,3573.9,0.75803735]
[1762203499705,0.50372,3574.2,3574.1,1.31123735]
[1762203499901,0.50379,3573.8,3573.7,0.5532]
[1762203500301,0.50376,3574.0,3573.7,1.31123735]
[1762203500604,0.50374,3574.1,3573.9,1.31123735]
[1762203500899,0.50374,3574.1,3573.6,0.00290889]
[1762203500900,1.04346,3573.9,3573.8,0.75803735]
[1762203501197,0.50388,3573.1,3571.9,1.2601]
[1762203501403,0.50387,3573.2,3573.0,0.75803735]
[1762203501602,0.50387,3573.2,3573.1,0.5532]
[1762203501803,0.50387,3573.2,3573.1,1.31123735]
[1762203502100,0.50387,3573.2,3573.1,1.31429693]
[1762203502599,1.25942,3573.9,3573.1,1.31429693]
[1762203502801,0.50383,3573.4,3573.3,0.75803735]
[1762203503603,10.717,3574.0,3573.3,0.75803735]
[1762203503903,0.50381,3573.6,3573.5,1.31123735]
[1762203504098,0.50381,3573.6,3573.5,0.5532]
[1762203504294,0.50381,3573.6,3573.5,1.31123735]
[1762203505600,1.38571,3573.6,3573.5,0.75803735]
[1762203505798,1.04351,3573.6,3573.5,0.75803735]
[1762203506807,0.50381,3573.6,3573.5,0.75803735]
[1762203507405,1.04351,3573.6,3573.5,0.75803735]
[1762203507910,0.50381,3573.6,3573.5,0.75803735]
[1762203509110,0.50381,3573.6,3573.5,1.26373735]
[1762203510000,0.1981,3574.2,3573.6,0.8134]
[1762203510204,0.50377,3573.9,3573.8,0.5057]
[1762203510605,0.50377,3573.9,3573.8,1.26373735]
[1762203510909,1.03847,3573.9,3573.8,0.75803735]
[1762203511611,0.50377,3573.9,3573.8,0.75803735]
[1762203512013,0.50376,3573.9,3573.8,0.75803735]
[1762203513509,11.89932,3574.2,3573.8,0.75803735]
[1762203513711,0.50381,3573.6,3573.5,0.5057]
[1762203514214,0.50381,3573.6,3573.5,1.26373735]
[1762203514807,0.50381,3573.6,3573.5,0.75803735]
[1762203515012,0.50386,3573.2,3573.1,0.00305958]
[1762203515509,0.3065,3573.0,3571.3,1.99404302]
[1762203515707,0.50409,3571.6,3571.2,0.3077]
[1762203515903,10.628,3571.9,3571.2,0.3077]
[1762203516106,1.26026,3571.5,3570.6,0.3077]
[1762203516307,1.03889,3570.9,3570.8,0.75803735]
[1762203516515,0.00283217,3570.9,3570.8,0.0022176]
[1762203516709,0.00283217,3570.9,3570.8,0.76025495]
[1762203517317,0.00283217,3570.9,3570.8,1.26595495]
[1762203517512,0.3065,3572.4,3570.8,8.26675495]
[1762203517704,0.50405,3571.9,3571.2,0.50413]
[1762203517904,2.248,3572.3,3571.0,0.75803735]
[1762203518111,1.26002,3572.2,3570.8,0.0022176]
[1762203518308,0.5041,3571.6,3571.5,0.5057]
[1762203518610,0.50732074,3571.6,3571.5,1.26373735]
[1762203518814,0.50732074,3571.6,3571.5,0.75803735]
[1762203519009,0.00322074,3571.6,3571.5,0.75803735]
[1762203519215,0.3065,3573.5,3572.1,0.8117]
[1762203519411,0.3065,3573.5,3572.7,0.50392]
[1762203519719,0.50386,3573.2,3572.9,0.75803735]
[1762203519912,0.50388,3573.1,3572.4,0.50397]
[1762203520108,0.50391,3572.9,3572.3,1.26202735]
[1762203520420,0.00295887,3573.1,3572.1,0.3077]
[1762203520619,0.00295887,3573.1,3572.1,1.06573735]
[1762203520818,0.50397,3572.5,3572.3,0.75803735]
[1762203521220,0.50397,3572.5,3572.4,0.75803735]
[1762203521416,0.50683887,3573.1,3572.5,0.50395]
[1762203521616,0.5039,3573.0,3572.8,0.75803735]
[1762203521811,0.00295887,3573.1,3572.7,0.75803735]
[1762203522017,0.00295887,3573.1,3572.8,0.75803735]
[1762203522216,0.5039,3572.9,3572.6,0.75803735]
[1762203522625,0.5039,3572.9,3572.8,0.75803735]
[1762203524321,0.00295887,3573.1,3572.8,0.75803735]
[1762203524322,0.50684887,3573.1,3572.8,0.75803735]
[1762203524625,1.56584,3574.2,3573.2,0.50385]
[1762203524928,1.56584,3574.2,3573.6,0.75803735]
[1762203524929,0.50379,3573.7,3573.6,0.75803735]
[1762203525223,0.50381,3573.6,3573.4,0.75803735]
[1762203525529,1.25948,3573.8,3573.0,0.75803735]
[1762203525724,0.50388,3573.1,3573.0,1.26533735]
[1762203525920,0.50388,3573.1,3573.0,0.00211675]
[1762203526123,0.50388,3573.1,3572.2,0.5073]
[1762203526124,1.25977,3572.9,3572.2,0.5073]
[1762203526324,0.50395,3572.6,3572.5,0.5073]
[1762203526524,1.25977,3572.9,3572.2,0.75803735]
[1762203526725,0.50399,3572.3,3572.1,0.3077]
[1762203527129,0.50399,3572.3,3572.2,1.26533735]
[1762203527323,1.25968,3573.2,3572.2,1.26533735]
[1762203527522,0.50396,3572.5,3572.4,0.75803735]
[1762203527723,0.504,3572.2,3572.1,0.81769467]
[1762203528025,0.50399,3572.3,3572.2,0.5073]
[1762203528425,0.3042,3573.0,3572.2,1.26533735]
[1762203528624,0.50396,3572.5,3572.4,0.75803735]
[1762203528820,0.504,3572.2,3572.1,1.57573202]
[1762203529126,1.2598,3572.8,3572.2,0.5073]
[1762203529127,0.504,3572.3,3572.2,0.5073]
[1762203529528,0.504,3572.3,3572.2,1.26533735]
[1762203530731,0.504,3572.2,3572.1,0.00269467]
[1762203531035,1.0048,3572.2,3572.1,0.00269467]
[1762203532222,11.6118,3572.2,3572.1,0.00269467]
[1762203532424,1.0048,3572.2,3572.1,0.00269467]
[1762203532628,1.25982,3572.8,3572.1,0.00269467]
[1762203532629,0.97701839,3574.0,3572.1,1.26803202]
[1762203532927,0.50389,3573.0,3572.9,0.5073]
[1762203533331,0.50389,3573.0,3572.9,1.26533735]
[1762203533732,0.50389,3573.0,3572.9,0.75803735]
[1762203533929,1.25977,3572.9,3572.1,0.00269467]
[1762203534125,0.504,3572.2,3572.1,0.50999467]
[1762203534324,0.50416,3571.1,3570.9,2.50134302]
[1762203534531,0.3042,3572.4,3570.0,2.79785377]
[1762203534532,10.625,3571.7,3570.0,1.56608]
[1762203534732,0.50416,3571.1,3570.9,0.5073]
[1762203535023,0.50416,3571.1,3570.8,0.75803735]
[1762203535024,1.26021,3571.7,3571.0,0.5073]
[1762203535229,0.50413,3571.3,3571.2,0.75803735]
[1762203535428,1.26303471,3571.7,3571.4,0.75803735]
[1762203535629,0.50416,3571.1,3571.0,0.00228674]
[1762203536033,0.50416,3571.1,3571.0,0.76032409]
[1762203536223,0.50416,3571.1,3571.0,1.26762409]
[1762203537326,0.50415,3571.2,3571.0,1.26762409]
[1762203537531,1.26303471,3571.7,3571.0,1.26762409]
[1762203537532,0.00282471,3571.7,3571.1,1.26218735]
[1762203537832,0.00282471,3571.7,3571.6,0.75803735]
[1762203538033,0.50689471,3571.7,3571.6,0.75803735]
[1762203538332,0.00282471,3571.7,3571.6,0.75803735]
[1762203538522,0.50689471,3571.7,3571.6,0.75803735]
[1762203539433,0.00282471,3571.7,3571.6,1.26533735]
[1762203539621,0.50689471,3571.7,3571.6,0.75803735]
[1762203540027,2.42143729,3574.5,3571.6,0.75803735]
[1762203540028,1.25976,3573.0,3571.6,1.26533735]
[1762203540222,1.25967,3573.2,3572.2,0.5073]
[1762203540434,2.82386,3572.8,3571.6,0.5073]
[1762203540631,1.26001,3572.3,3571.6,0.5073]
[1762203540832,0.50406,3571.9,3571.8,1.26533735]
[1762203541031,1.25961,3573.4,3571.9,1.26012]
[1762203541327,0.00270791,3573.4,3573.3,0.5073]
[1762203541533,0.00270791,3573.4,3573.3,1.26533735]
[1762203542229,0.025,3574.7,3573.8,0.5073]
[1762203542430,0.025,3574.7,3574.2,0.5073]
[1762203542630,1.00454,3574.1,3574.0,0.75803735]
[1762203542830,0.50379,3573.8,3573.2,0.50386]
[1762203543030,0.025,3574.7,3573.5,0.3053]
[1762203543231,0.02754486,3574.7,3574.0,0.75803735]
[1762203543436,0.50374,3574.1,3573.7,0.50379]
[1762203543637,0.50374,3574.1,3574.0,0.5073]
[1762203543933,1.28671486,3574.7,3574.6,0.5073]
[1762203543934,0.02754486,3574.7,3574.6,0.5073]
[1762203544234,0.54434206,3576.3,3574.9,0.3053]
[1762203544432,0.24014206,3576.3,3576.0,0.75803735]
[1762203544627,0.24014206,3576.3,3575.9,0.75803735]
[1762203544829,1.2584,3576.8,3575.6,0.3053]
[1762203545029,0.50347,3576.0,3575.8,0.75803735]
[1762203545230,0.50347,3576.0,3575.7,0.75803735]
[1762203545231,0.00257019,3576.0,3575.7,0.75803735]
[1762203545432,0.50336,3576.8,3576.1,0.50345]
[1762203545630,13.83797,3578.0,3575.6,0.3053]
[1762203545631,1.25817,3577.5,3575.9,0.75803735]
[1762203545834,1.25817,3577.5,3575.9,1.26150735]
[1762203545835,0.50339,3576.6,3575.9,1.26150735]
[1762203546036,1.25817,3577.5,3576.1,0.75803735]
[1762203546232,12.57581,3579.2,3575.6,1.56409]
[1762203546233,12.57886,3578.3,3575.6,1.56409]
[1762203546435,0.50332,3577.1,3576.8,0.2593]
[1762203546633,0.50336,3576.8,3576.2,0.75803735]
[1762203546939,0.50349,3575.9,3575.8,0.75803735]
[1762203547135,0.50342,3576.4,3575.8,0.75803735]
[1762203547434,0.50336,3576.8,3576.6,0.75803735]
[1762203547633,0.3042,3577.6,3576.3,0.75803735]
[1762203547832,12.58253184,3578.3,3576.8,0.3053]
[1762203547833,0.00357184,3578.3,3576.8,0.3053]
[1762203548033,0.00357184,3578.3,3577.7,0.50322]
[1762203548241,0.50316,3578.2,3577.9,0.75803735]
[1762203548531,0.50317,3578.2,3578.0,0.75803735]
[1762203548735,0.50322,3577.8,3577.5,0.75803735]
[1762203548933,0.00357184,3578.3,3577.6,0.80854]
[1762203549133,0.00357184,3578.3,3578.2,0.75803735]
[1762203549337,0.00357184,3578.3,3578.2,0.76075543]
[1762203549535,1.28239,3579.7,3578.2,0.76075543]
[1762203549536,0.025,3579.7,3578.2,0.76075543]
[1762203549840,0.50307,3578.9,3578.5,0.75803735]
[1762203550035,0.50302,3579.2,3578.6,0.50309]
[1762203550238,0.025,3579.7,3579.2,0.3053]
[1762203550531,0.025,3579.7,3578.4,0.2708]
[1762203550532,1.28561929,3579.7,3578.6,0.75803735]
[1762203550729,0.50309,3578.7,3578.4,0.2708]
[1762203550934,1.28561929,3579.7,3578.6,0.75803735]
[1762203550935,0.50305,3579.0,3578.6,0.75803735]
[1762203551129,0.50307,3578.9,3578.4,1.02883735]
[1762203551432,0.02821929,3579.7,3578.8,0.75803735]
[1762203551631,0.50298,3579.5,3578.8,0.75803735]
[1762203551832,0.50301,3579.3,3579.0,0.75803735]
[1762203552039,0.02821929,3579.7,3578.6,0.75803735]
[1762203552338,0.02821929,3579.7,3578.8,1.26109735]
[1762203552541,0.02821929,3579.7,3579.2,0.3053]
[1762203552740,0.02821929,3579.7,3579.4,0.75803735]
[1762203552938,0.50297,3579.6,3579.4,0.75803735]
[1762203553141,0.02821929,3579.7,3579.5,0.75803735]
[1762203553442,0.02821929,3579.7,3578.4,0.2708]
[1762203553443,0.02821929,3579.7,3579.2,0.3053]
[1762203553831,0.02821929,3579.7,3579.6,0.75803735]
[1762203555133,0.3042,3581.6,3580.0,0.2652]
[1762203555439,13.427,3582.1,3580.5,0.75803735]
[1762203555633,0.50276,3581.1,3580.7,0.75803735]
[1762203555837,0.50276,3581.1,3580.0,0.2652]
[1762203555838,0.50276,3581.1,3580.3,0.75803735]
[1762203556038,0.50277,3581.0,3580.4,0.75803735]
[1762203556340,0.00243638,3581.1,3580.5,0.50283]
[1762203556543,0.50279,3580.9,3580.0,1.02323735]
[1762203556839,0.00243638,3581.1,3580.0,0.2652]
[1762203557039,0.50277,3581.0,3580.0,0.2652]
[1762203557246,0.00243638,3581.1,3580.2,0.75803735]
[1762203557742,0.00243638,3581.1,3580.4,0.75803735]
[1762203557940,0.00243638,3581.1,3580.3,0.50286]
[1762203558141,0.00243638,3581.1,3580.5,0.75803735]
[1762203558443,1.25624,3583.0,3581.0,0.75803735]
[1762203558744,0.50262,3582.1,3581.3,0.50272]
[1762203558936,0.50259,3582.3,3580.9,0.75803735]
[1762203559137,0.50257,3582.5,3581.6,0.76787]
[1762203559439,0.50257,3582.5,3581.6,0.00344951]
[1762203559440,0.50267,3581.7,3581.6,0.00344951]
[1762203559645,0.1832,3582.4,3580.8,0.2652]
[1762203559843,1.25651,3582.2,3580.8,0.2652]
[1762203560035,1.25655,3582.1,3580.8,1.02323735]
[1762203560236,0.50271,3581.5,3581.0,0.75803735]
[1762203560436,10.7862,3582.4,3581.0,0.75803735]
[1762203560644,0.50272,3581.3,3581.2,0.75803735]
[1762203560840,0.50278,3581.0,3580.8,0.26829782]
[1762203561141,1.25658,3582.0,3580.8,0.26829782]
[1762203561341,0.50274,3581.2,3580.8,0.00309782]
[1762203561643,1.25661,3581.9,3581.1,0.75803735]
[1762203561644,0.50273,3581.3,3581.1,0.75803735]
[1762203561845,0.50277,3581.0,3580.8,0.00309782]
[1762203562244,0.1832,3582.4,3580.9,0.75803735]
[1762203562446,0.1832,3582.4,3580.8,0.26829782]
[1762203562447,0.1832,3582.4,3581.7,0.75803735]
[1762203562743,0.1832,3582.4,3581.0,0.75803735]
[1762203562952,0.50267,3581.7,3581.2,0.50273]
[1762203563241,12.86599,3583.2,3581.2,2.01487735]
[1762203563242,1.25623,3583.0,3581.2,2.01487735]
[1762203563443,1.25622,3583.1,3582.0,0.50262]
[1762203563651,0.5026,3582.3,3582.1,0.4725]
[1762203563941,0.50259,3582.3,3581.8,0.75803735]
[1762203564142,0.3042,3583.2,3581.6,0.76787]
[1762203564143,0.3042,3583.2,3581.6,0.2652]
[1762203564339,0.3042,3583.2,3582.2,0.75803735]
[1762203564644,1.25639,3582.6,3581.6,0.2652]
[1762203564848,0.50268,3581.6,3581.0,0.50276]
[1762203565040,0.1832,3582.4,3581.4,0.50271]
[1762203565350,0.3042,3583.2,3581.0,0.75803735]
[1762203565351,0.50253,3582.7,3582.3,0.50258]
[1762203565541,0.50253,3582.7,3582.4,0.75803735]
[1762203565845,0.50255,3582.6,3582.4,0.75803735]
[1762203566048,1.56038,3583.2,3581.5,0.50269]
[1762203566049,1.25854712,3582.5,3581.5,0.50269]
[1762203566347,0.50259,3582.3,3581.9,0.50264]
[1762203566642,0.00213712,3582.5,3581.6,0.76788]
[1762203566842,0.50262,3582.1,3581.8,1.23053735]
[1762203567146,0.50263,3582.0,3581.8,0.75803735]
[1762203567345,0.50469712,3582.5,3582.1,0.5026]
[1762203567549,0.00213712,3582.5,3582.3,0.75803735]
[1762203567750,0.00213712,3582.5,3582.0,0.75803735]
[1762203568243,0.00213712,3582.5,3582.2,1.26062735]
[1762203568544,0.00213712,3582.5,3582.4,0.75803735]
[1762203568737,0.2076,3582.4,3580.8,0.26829782]
[1762203569042,1.25655,3582.1,3580.8,0.26829782]
[1762203569247,0.2076,3582.4,3581.2,0.2757]
[1762203569248,0.50263,3582.0,3581.2,0.2757]
[1762203569451,0.50265,3581.8,3581.6,0.75803735]
[1762203569649,0.50263,3582.0,3581.4,0.75803735]
[1762203569948,0.2076,3582.4,3581.7,0.50267]
[1762203570144,0.71017,3582.4,3581.5,1.26071735]
[1762203570345,0.00213712,3582.5,3581.4,0.75803735]
[1762203570548,0.50257,3582.4,3581.4,0.75803735]
[1762203570845,0.50268,3581.6,3581.1,0.50275]
[1762203571142,0.50264,3581.9,3581.4,0.50271]
[1762203571338,0.00213712,3582.5,3582.4,0.4275]
[1762203571538,0.00213712,3582.5,3582.4,1.18553735]
[1762203572538,0.2082,3584.7,3582.7,1.25632]
[1762203572738,0.50235,3584.0,3582.9,1.25624]
[1762203572944,0.2082,3584.7,3582.7,0.23506234]
[1762203573146,0.50229,3584.4,3583.9,0.50235]
[1762203573344,0.025,3584.7,3583.8,0.50236]
[1762203573643,0.02740634,3584.7,3583.8,0.00308434]
[1762203573849,0.50231,3584.3,3583.9,0.75590023]
[1762203574044,0.02740634,3584.7,3583.9,0.75590023]
[1762203574244,0.02740634,3584.7,3584.4,0.75590023]
[1762203574445,0.02740634,3584.7,3583.8,0.00308434]
[1762203574446,0.02740634,3584.7,3584.6,0.75590023]
[1762203574649,0.02740634,3584.7,3584.4,0.50229]
[1762203574953,0.50226,3584.6,3584.3,0.75590023]
[1762203575146,0.50227,3584.6,3584.0,0.75590023]
[1762203575346,0.02740634,3584.7,3584.5,1.25817023]
[1762203575548,0.02740634,3584.7,3584.4,0.75590023]
[1762203575751,0.02740634,3584.7,3584.6,0.75590023]
[1762203575948,0.02740634,3584.7,3584.6,1.68566023]
[1762203576249,0.02740634,3584.7,3584.6,1.18340023]
[1762203576553,0.02740634,3584.7,3584.6,0.75590023]
[1762203576948,0.02740634,3584.7,3584.6,1.18340023]
[1762203577553,0.50201,3586.4,3585.7,0.5021]
[1762203577851,1.25493,3586.7,3585.6,0.2757]
[1762203578149,0.2682,3586.8,3585.6,0.2757]
[1762203578341,0.50188,3587.4,3585.8,1.25521]
[1762203578548,0.50188,3587.4,3585.6,0.2757]
[1762203578549,0.50188,3587.3,3586.2,0.75590023]
[1762203578743,0.00307279,3587.4,3586.3,10.619]
[1762203579044,0.00307279,3587.4,3587.2,0.77758]
[1762203579248,1.4652,3589.6,3587.3,6.9688]
[1762203579446,0.50166,3588.9,3588.0,0.75590023]
[1762203579654,1.4652,3589.6,3587.4,0.75590023]
[1762203579945,1.25417,3588.9,3587.4,0.75590023]
[1762203580149,1.25417,3588.9,3587.4,0.00323232]
[1762203580150,0.50176,3588.2,3587.4,0.00323232]
[1762203580351,0.50181,3587.9,3587.4,0.00323232]
[1762203580555,0.50177,3588.2,3587.6,0.75590023]
[1762203580758,0.50178,3588.1,3587.6,0.75590023]
[1762203581050,0.1855,3588.8,3587.8,0.75590023]
[1762203581248,0.00197663,3588.9,3588.0,0.2757]
[1762203581654,0.00197663,3588.9,3588.6,0.75590023]
[1762203581851,0.00197663,3588.9,3588.5,0.50171]
[1762203582052,0.00197663,3588.9,3588.8,1.03160023]
[1762203582245,0.00197663,3588.9,3588.0,0.2757]
[1762203582446,0.00197663,3588.9,3588.2,0.75590023]
[1762203582655,0.00197663,3588.9,3588.8,1.03160023]
[1762203582853,0.00197663,3588.9,3588.8,0.2757]
[1762203583355,0.00197663,3588.9,3588.8,0.75590023]
[1762203585754,0.00197663,3588.9,3588.0,0.2757]
[1762203585755,0.50172,3588.5,3588.0,0.2757]
[1762203586051,0.00197663,3588.9,3588.1,0.75590023]
[1762203586363,0.50172,3588.5,3587.9,0.75590023]
[1762203586654,0.50176,3588.2,3588.0,0.75590023]
[1762203586857,0.50175,3588.3,3587.6,0.75590023]
[1762203587154,0.50178,3588.1,3587.8,0.75590023]
[1762203587356,0.2573,3588.8,3587.7,0.75590023]
[1762203587556,0.50173,3588.5,3587.8,1.25771023]
[1762203587758,0.00197663,3588.9,3588.2,0.75590023]
[1762203588054,0.00197663,3588.9,3588.8,0.75590023]
[1762203588360,0.025,3589.7,3588.8,0.75590023]
[1762203588361,0.025,3589.7,3589.2,0.50161]
[1762203588561,0.025,3589.7,3589.3,0.75590023]
[1762203588764,0.025,3589.7,3589.2,0.50161]
[1762203589056,0.025,3589.7,3589.0,0.75590023]
[1762203589256,0.2682,3591.2,3589.6,0.99600023]
[1762203589453,1.2534,3591.1,3589.6,0.2401]
[1762203589654,0.50151,3590.0,3589.8,0.75590023]
[1762203590050,0.5015,3590.1,3589.9,0.75590023]
[1762203590354,0.00359108,3590.1,3588.8,0.2401]
[1762203590563,0.00359108,3590.1,3589.5,0.50157]
[1762203590762,0.50151,3590.0,3589.0,0.75590023]
[1762203591059,0.00359108,3590.1,3589.9,0.50151]
[1762203591461,0.00359108,3590.1,3590.0,0.75590023]
[1762203591754,0.00359108,3590.1,3590.0,0.00204222]
[1762203591959,0.00359108,3590.1,3590.0,0.75794245]
[1762203592564,0.50508108,3590.1,3590.0,0.75794245]
[1762203592765,6.96759108,3590.1,3588.8,0.2401]
[1762203593057,6.96759108,3590.1,3587.6,13.385]
[1762203593058,0.50173,3588.4,3587.7,0.50182]
[1762203593255,0.50173,3588.4,3587.1,1.25476]
[1762203593256,1.25409,3589.1,3586.8,1.25486]
[1762203593470,1.25402,3589.3,3587.0,1.25479]
[1762203593656,0.1418,3589.6,3587.0,1.25479]
[1762203593854,1.2541,3589.1,3587.8,0.5018]
[1762203594057,0.1418,3589.6,3588.0,0.2401]
[1762203594258,12.68102,3589.6,3588.0,0.2401]
[1762203594455,12.68102,3589.6,3587.2,0.2779529]
[1762203594456,1.25413,3589.0,3587.2,0.2779529]
[1762203594656,1.25395,3589.5,3588.0,0.2401]
[1762203594856,0.50175,3588.3,3588.0,0.2401]
[1762203595058,1.25405,3589.3,3587.2,0.2779529]
[1762203595259,0.1418,3589.6,3587.7,0.50181]
[1762203595466,0.00359108,3590.1,3588.8,0.1906]
[1762203595855,0.00359108,3590.1,3589.6,0.2401]
[1762203596563,0.50509108,3590.1,3589.6,0.2401]
[1762203596760,0.50157,3589.6,3588.8,0.1906]
[1762203596959,0.00359108,3590.1,3588.8,0.1906]
[1762203597162,0.5015,3590.0,3588.8,0.1906]
[1762203597354,1.25385,3589.8,3587.6,1.25459]
[1762203597561,1.25396,3589.5,3588.3,0.50174]
[1762203597862,1.25396,3589.5,3587.2,1.5326729]